[Event "December 5 Late 2023"]
[Site "https://www.chess.com"]
[Date "2023.12.05"]
[Round "2"]
[White "Bok, Benjamin"]
[Black "Bjelobrk, Igor"]
[Result "1-0"]
[Board "24"]
[TimeControl "180+1"]
[WhiteFideId "1017063"]
[BlackFideId "4300726"]
[WhiteElo "2976"]
[BlackElo "2592"]
[WhiteTeam "NED"]
[BlackTeam "AUS"]
[WhiteClock "0:00:11"]
[BlackClock "0:00:26"]

1. d4 {[%clk 0:03:00]}  e6 {[%clk 0:02:59]} 2. c4 {[%clk 0:03:01]}  b6 {[%clk 0:02:59]} 3. a3 {[%clk 0:02:54]}  Bb7 {[%clk 0:02:57]} 4. Nc3 {[%clk 0:02:54]}  f5 {[%clk 0:02:56]} 5. Bf4 {[%clk 0:02:51]}  Nf6 {[%clk 0:02:34]} 6. e3 {[%clk 0:02:51]}  Be7 {[%clk 0:02:28]} 7. h3 {[%clk 0:02:51]}  O-O {[%clk 0:02:20]} 8. Nf3 {[%clk 0:02:51]}  Ne4 {[%clk 0:02:15]} 9. Nxe4 {[%clk 0:02:43]}  fxe4 {[%clk 0:02:12]} 10. Nd2 {[%clk 0:02:43]}  d5 {[%clk 0:02:10]} 11. Be2 {[%clk 0:02:38]}  Nc6 {[%clk 0:01:57]} 12. Bg4 {[%clk 0:02:32]}  Bc8 {[%clk 0:01:47]} 13. O-O {[%clk 0:02:20]}  Nxd4 {[%clk 0:01:44]} 14. Bxc7 {[%clk 0:02:04]}  Qxc7 {[%clk 0:01:43]} 15. exd4 {[%clk 0:02:04]}  Bf6 {[%clk 0:01:38]} 16. Rc1 {[%clk 0:01:59]}  Qf7 {[%clk 0:01:37]} 17. Nb1 {[%clk 0:01:50]}  Ba6 {[%clk 0:01:35]} 18. Be2 {[%clk 0:01:42]}  Rad8 {[%clk 0:01:32]} 19. cxd5 {[%clk 0:01:35]}  Bxe2 {[%clk 0:01:31]} 20. Qxe2 {[%clk 0:01:35]}  exd5 {[%clk 0:01:31]} 21. Rfd1 {[%clk 0:01:31]}  Bh4 {[%clk 0:01:22]} 22. Rc2 {[%clk 0:01:25]}  Qg6 {[%clk 0:01:17]} 23. Qg4 {[%clk 0:01:24]}  Qxg4 {[%clk 0:01:14]} 24. hxg4 {[%clk 0:01:25]}  Rc8 {[%clk 0:01:10]} 25. Rxc8 {[%clk 0:01:22]}  Rxc8 {[%clk 0:01:10]} 26. Nc3 {[%clk 0:01:22]}  Rd8 {[%clk 0:01:08]} 27. Ne2 {[%clk 0:00:48]}  Kf7 {[%clk 0:01:04]} 28. Rc1 {[%clk 0:00:46]}  Rd7 {[%clk 0:01:04]} 29. Rc6 {[%clk 0:00:42]}  Bf6 {[%clk 0:01:04]} 30. f3 {[%clk 0:00:35]}  Ke7 {[%clk 0:01:04]} 31. Kf2 {[%clk 0:00:34]}  Rd6 {[%clk 0:01:03]} 32. Rc7+ {[%clk 0:00:29]}  Rd7 {[%clk 0:01:04]} 33. Rxd7+ {[%clk 0:00:29]}  Kxd7 {[%clk 0:01:05]} 34. fxe4 {[%clk 0:00:30]}  dxe4 {[%clk 0:01:04]} 35. Ke3 {[%clk 0:00:31]}  Ke6 {[%clk 0:00:59]} 36. Kxe4 {[%clk 0:00:31]}  b5 {[%clk 0:00:58]} 37. b3 {[%clk 0:00:29]}  a6 {[%clk 0:00:57]} 38. Nf4+ {[%clk 0:00:26]}  Kd6 {[%clk 0:00:57]} 39. Nd3 {[%clk 0:00:27]}  Be7 {[%clk 0:00:45]} 40. a4 {[%clk 0:00:19]}  bxa4 {[%clk 0:00:41]} 41. bxa4 {[%clk 0:00:20]}  a5 {[%clk 0:00:38]} 42. Ne5 {[%clk 0:00:19]}  Bd8 {[%clk 0:00:36]} 43. Nc4+ {[%clk 0:00:15]}  Kc6 {[%clk 0:00:33]} 44. Ke5 {[%clk 0:00:13]}  Bf6+ {[%clk 0:00:31]} 45. Ke4 {[%clk 0:00:12]}  Bd8 {[%clk 0:00:31]} 46. Nb2 {[%clk 0:00:11]}  g6 {[%clk 0:00:31]} 47. Nd3 {[%clk 0:00:10]}  Kd6 {[%clk 0:00:29]} 48. Ne5 {[%clk 0:00:10]}  Bb6 {[%clk 0:00:29]} 49. Nc4+ {[%clk 0:00:10]}  Kc6 {[%clk 0:00:29]} 50. d5+ {[%clk 0:00:10]}  Kc5 {[%clk 0:00:29]} 51. Nxb6 {[%clk 0:00:10]}  Kxb6 {[%clk 0:00:30]} 52. d6 {[%clk 0:00:10]}  Kc6 {[%clk 0:00:26]} 53. Ke5 {[%clk 0:00:11]} 1-0

[Event "December 5 Late 2023"]
[Site "https://www.chess.com"]
[Date "2023.12.05"]
[Round "2"]
[White "Drygalov, Andrey"]
[Black "Asish Panda"]
[Result "1-0"]
[Board "26"]
[TimeControl "180+1"]
[WhiteFideId "24171735"]
[BlackFideId "45012458"]
[WhiteElo "2963"]
[BlackElo "2589"]
[WhiteTeam "RUS"]
[BlackTeam "IND"]
[WhiteClock "0:01:03"]
[BlackClock "0:00:45"]

1. e4 {[%clk 0:03:00]}  e6 {[%clk 0:02:59]} 2. d4 {[%clk 0:03:01]}  d5 {[%clk 0:02:59]} 3. Nd2 {[%clk 0:03:01]}  c5 {[%clk 0:02:57]} 4. exd5 {[%clk 0:03:02]}  Qxd5 {[%clk 0:02:58]} 5. Ngf3 {[%clk 0:03:02]}  cxd4 {[%clk 0:02:58]} 6. Bc4 {[%clk 0:03:03]}  Qd7 {[%clk 0:02:59]} 7. O-O {[%clk 0:03:03]}  Nc6 {[%clk 0:02:59]} 8. Nb3 {[%clk 0:03:02]}  Nf6 {[%clk 0:03:00]} 9. Qe2 {[%clk 0:03:02]}  Bd6 {[%clk 0:02:57]} 10. Rd1 {[%clk 0:03:00]}  O-O {[%clk 0:02:56]} 11. Nbxd4 {[%clk 0:02:58]}  Nxd4 {[%clk 0:02:55]} 12. Rxd4 {[%clk 0:02:59]}  Qc7 {[%clk 0:02:43]} 13. Bg5 {[%clk 0:02:58]}  e5 {[%clk 0:02:31]} 14. Rh4 {[%clk 0:02:58]}  Bf5 {[%clk 0:02:28]} 15. Bxf6 {[%clk 0:01:32]}  gxf6 {[%clk 0:02:28]} 16. Bd3 {[%clk 0:01:32]}  Bg6 {[%clk 0:02:17]} 17. Rg4 {[%clk 0:01:31]}  Kh8 {[%clk 0:02:07]} 18. Nh4 {[%clk 0:01:29]}  Rae8 {[%clk 0:01:56]} 19. Be4 {[%clk 0:01:19]}  Qd7 {[%clk 0:01:42]} 20. Qf3 {[%clk 0:01:18]}  Be7 {[%clk 0:01:21]} 21. Bxg6 {[%clk 0:01:04]}  fxg6 {[%clk 0:01:18]} 22. Nxg6+ {[%clk 0:01:04]}  hxg6 {[%clk 0:01:16]} 23. Qh3+ {[%clk 0:01:04]}  Kg7 {[%clk 0:01:13]} 24. Rxg6+ {[%clk 0:01:05]}  Kxg6 {[%clk 0:01:13]} 25. Qxd7 {[%clk 0:01:05]}  Bc5 {[%clk 0:01:07]} 26. Qg4+ {[%clk 0:01:05]}  Kh7 {[%clk 0:01:03]} 27. Rd1 {[%clk 0:01:04]}  Re7 {[%clk 0:00:51]} 28. Rd3 {[%clk 0:01:03]}  Rg7 {[%clk 0:00:47]} 29. Rh3+ {[%clk 0:01:03]}  Kg8 {[%clk 0:00:45]} 30. Qc4+ {[%clk 0:01:03]} 1-0

[Event "December 5 Late 2023"]
[Site "https://www.chess.com"]
[Date "2023.12.05"]
[Round "2"]
[White "Manukyan, Sargis A."]
[Black "Kamsky, Gata"]
[Result "1/2-1/2"]
[Board "27"]
[TimeControl "180+1"]
[WhiteFideId "13303970"]
[BlackFideId "2000024"]
[WhiteElo "2585"]
[BlackElo "2940"]
[WhiteTeam "ARM"]
[BlackTeam "USA"]
[WhiteClock "0:01:05"]
[BlackClock "0:00:59"]

1. d4 {[%clk 0:02:58]}  Nf6 {[%clk 0:02:50]} 2. c4 {[%clk 0:02:58]}  c6 {[%clk 0:02:49]} 3. Nc3 {[%clk 0:02:59]}  d5 {[%clk 0:02:49]} 4. e3 {[%clk 0:02:59]}  g6 {[%clk 0:02:48]} 5. Nf3 {[%clk 0:03:00]}  Bg7 {[%clk 0:02:49]} 6. cxd5 {[%clk 0:03:00]}  cxd5 {[%clk 0:02:48]} 7. Be2 {[%clk 0:03:01]}  O-O {[%clk 0:02:48]} 8. O-O {[%clk 0:03:02]}  Nc6 {[%clk 0:02:48]} 9. Bd2 {[%clk 0:03:02]}  Bg4 {[%clk 0:02:47]} 10. h3 {[%clk 0:03:02]}  Bxf3 {[%clk 0:02:47]} 11. Bxf3 {[%clk 0:03:03]}  e6 {[%clk 0:02:47]} 12. Rc1 {[%clk 0:03:04]}  Qe7 {[%clk 0:02:40]} 13. Na4 {[%clk 0:03:02]}  Nd7 {[%clk 0:02:38]} 14. a3 {[%clk 0:03:01]}  Rfc8 {[%clk 0:02:37]} 15. Qb3 {[%clk 0:03:00]}  Rab8 {[%clk 0:02:34]} 16. Nc5 {[%clk 0:03:00]}  Nxc5 {[%clk 0:02:32]} 17. Rxc5 {[%clk 0:03:00]}  Qd7 {[%clk 0:02:19]} 18. Rfc1 {[%clk 0:03:00]}  Ne7 {[%clk 0:02:19]} 19. Qc2 {[%clk 0:02:32]}  Rxc5 {[%clk 0:01:56]} 20. Qxc5 {[%clk 0:02:32]}  Nc6 {[%clk 0:01:57]} 21. b4 {[%clk 0:02:24]}  Bf8 {[%clk 0:01:56]} 22. Qc3 {[%clk 0:02:21]}  Rc8 {[%clk 0:01:49]} 23. Be2 {[%clk 0:02:14]}  Ne7 {[%clk 0:01:49]} 24. Qb2 {[%clk 0:02:14]}  Rxc1+ {[%clk 0:01:48]} 25. Qxc1 {[%clk 0:02:15]}  Qc8 {[%clk 0:01:47]} 26. Qc5 {[%clk 0:01:59]}  Nc6 {[%clk 0:01:40]} 27. Qc3 {[%clk 0:01:51]}  Bd6 {[%clk 0:01:36]} 28. f4 {[%clk 0:01:47]}  Ne7 {[%clk 0:01:36]} 29. Qxc8+ {[%clk 0:01:44]}  Nxc8 {[%clk 0:01:35]} 30. Kf2 {[%clk 0:01:44]}  f5 {[%clk 0:01:34]} 31. g4 {[%clk 0:01:43]}  Kf7 {[%clk 0:01:29]} 32. g5 {[%clk 0:01:43]}  Bf8 {[%clk 0:01:27]} 33. h4 {[%clk 0:01:40]}  h5 {[%clk 0:01:26]} 34. Bd3 {[%clk 0:01:20]}  Nd6 {[%clk 0:01:26]} 35. Ke2 {[%clk 0:01:20]}  b5 {[%clk 0:01:20]} 36. Kd1 {[%clk 0:01:17]}  Nc4 {[%clk 0:01:19]} 37. Bc1 {[%clk 0:01:17]}  Ke8 {[%clk 0:01:18]} 38. Kc2 {[%clk 0:01:17]}  Kd7 {[%clk 0:01:18]} 39. Kb3 {[%clk 0:01:17]}  Kc6 {[%clk 0:01:18]} 40. a4 {[%clk 0:01:17]}  a6 {[%clk 0:01:12]} 41. a5 {[%clk 0:01:08]}  Be7 {[%clk 0:00:59]} 42. Be2 {[%clk 0:01:05]} 1/2-1/2

[Event "December 5 Late 2023"]
[Site "https://www.chess.com"]
[Date "2023.12.05"]
[Round "2"]
[White "Maksimovic, Bojan"]
[Black "Iskusnyh, Sergei"]
[Result "1-0"]
[Board "30"]
[TimeControl "180+1"]
[WhiteFideId "14408120"]
[BlackFideId "4120027"]
[WhiteElo "2927"]
[BlackElo "2573"]
[WhiteTeam "BIH"]
[BlackTeam "RUS"]
[WhiteClock "0:00:40"]
[BlackClock "0:00:03"]

1. a4 {[%clk 0:03:00]}  d5 {[%clk 0:02:52]} 2. d4 {[%clk 0:03:00]}  Nf6 {[%clk 0:02:50]} 3. Nf3 {[%clk 0:02:48]}  c5 {[%clk 0:02:47]} 4. e3 {[%clk 0:02:37]}  Nc6 {[%clk 0:02:45]} 5. b3 {[%clk 0:02:28]}  cxd4 {[%clk 0:02:43]} 6. exd4 {[%clk 0:02:27]}  Bg4 {[%clk 0:02:43]} 7. Be2 {[%clk 0:02:25]}  e6 {[%clk 0:02:40]} 8. Bb2 {[%clk 0:02:24]}  Bb4+ {[%clk 0:02:36]} 9. c3 {[%clk 0:02:24]}  Bd6 {[%clk 0:02:36]} 10. O-O {[%clk 0:02:24]}  O-O {[%clk 0:02:35]} 11. h3 {[%clk 0:02:25]}  Bh5 {[%clk 0:02:32]} 12. Na3 {[%clk 0:02:25]}  Rc8 {[%clk 0:02:27]} 13. c4 {[%clk 0:02:19]}  Ne4 {[%clk 0:02:18]} 14. Nc2 {[%clk 0:02:12]}  Bf4 {[%clk 0:01:36]} 15. g3 {[%clk 0:01:59]}  Bh6 {[%clk 0:01:27]} 16. Ne5 {[%clk 0:01:30]}  Bxe2 {[%clk 0:01:23]} 17. Qxe2 {[%clk 0:01:31]}  Nxe5 {[%clk 0:01:01]} 18. dxe5 {[%clk 0:01:31]}  Nd2 {[%clk 0:00:49]} 19. Rfd1 {[%clk 0:01:24]}  Nxb3 {[%clk 0:00:49]} 20. Ra3 {[%clk 0:01:25]}  Nc5 {[%clk 0:00:41]} 21. cxd5 {[%clk 0:01:24]}  exd5 {[%clk 0:00:42]} 22. Nb4 {[%clk 0:01:23]}  Qd7 {[%clk 0:00:23]} 23. Nxd5 {[%clk 0:01:14]}  Qxh3 {[%clk 0:00:21]} 24. Ne7+ {[%clk 0:01:15]}  Kh8 {[%clk 0:00:20]} 25. Nxc8 {[%clk 0:01:15]}  Rxc8 {[%clk 0:00:21]} 26. Rc3 {[%clk 0:01:15]}  b6 {[%clk 0:00:20]} 27. Ba3 {[%clk 0:01:15]}  Bg5 {[%clk 0:00:17]} 28. Bxc5 {[%clk 0:01:14]}  bxc5 {[%clk 0:00:18]} 29. Qa6 {[%clk 0:01:06]}  h5 {[%clk 0:00:14]} 30. Qxa7 {[%clk 0:01:06]}  Kg8 {[%clk 0:00:13]} 31. Rf3 {[%clk 0:01:06]}  Qe6 {[%clk 0:00:10]} 32. Qd7 {[%clk 0:01:06]}  c4 {[%clk 0:00:10]} 33. Rxf7 {[%clk 0:00:56]}  Qxf7 {[%clk 0:00:09]} 34. Qxc8+ {[%clk 0:00:56]}  Kh7 {[%clk 0:00:10]} 35. Qc6 {[%clk 0:00:44]}  Qf5 {[%clk 0:00:06]} 36. Qxc4 {[%clk 0:00:39]}  Qxe5 {[%clk 0:00:06]} 37. Qd3+ {[%clk 0:00:40]}  Kh6 {[%clk 0:00:03]} 38. Qd6+ {[%clk 0:00:40]} 1-0

[Event "December 5 Late 2023"]
[Site "https://www.chess.com"]
[Date "2023.12.05"]
[Round "2"]
[White "Ozates, Tuna"]
[Black "Rasulov, Vugar"]
[Result "0-1"]
[Board "33"]
[TimeControl "180+1"]
[WhiteFideId "6354521"]
[BlackFideId "13402390"]
[WhiteElo "2570"]
[BlackElo "2914"]
[WhiteTeam "TUR"]
[BlackTeam "AZE"]
[WhiteClock "0:00:09"]
[BlackClock "0:00:07"]

1. e4 {[%clk 0:03:00]}  e5 {[%clk 0:02:59]} 2. Nf3 {[%clk 0:03:01]}  Nc6 {[%clk 0:02:59]} 3. Bc4 {[%clk 0:03:01]}  Nf6 {[%clk 0:02:59]} 4. d3 {[%clk 0:03:02]}  Be7 {[%clk 0:02:59]} 5. O-O {[%clk 0:03:02]}  O-O {[%clk 0:03:00]} 6. a4 {[%clk 0:03:02]}  d6 {[%clk 0:02:58]} 7. Nc3 {[%clk 0:03:03]}  Na5 {[%clk 0:02:53]} 8. Ba2 {[%clk 0:03:03]}  c5 {[%clk 0:02:54]} 9. Nd5 {[%clk 0:03:03]}  Nc6 {[%clk 0:02:52]} 10. c3 {[%clk 0:03:03]}  Be6 {[%clk 0:02:52]} 11. h3 {[%clk 0:03:00]}  h6 {[%clk 0:02:50]} 12. Re1 {[%clk 0:02:59]}  Re8 {[%clk 0:02:50]} 13. Bd2 {[%clk 0:02:58]}  Bf8 {[%clk 0:02:50]} 14. b4 {[%clk 0:02:58]}  cxb4 {[%clk 0:02:49]} 15. cxb4 {[%clk 0:02:59]}  Bxd5 {[%clk 0:02:48]} 16. exd5 {[%clk 0:03:00]}  Ne7 {[%clk 0:02:48]} 17. Nh4 {[%clk 0:02:49]}  Ng6 {[%clk 0:02:29]} 18. Nxg6 {[%clk 0:02:42]}  fxg6 {[%clk 0:02:30]} 19. Rc1 {[%clk 0:02:27]}  Rc8 {[%clk 0:02:30]} 20. Qf3 {[%clk 0:02:23]}  Qd7 {[%clk 0:02:28]} 21. b5 {[%clk 0:02:18]}  Qf5 {[%clk 0:02:27]} 22. Qe3 {[%clk 0:02:15]}  Rxc1 {[%clk 0:02:14]} 23. Rxc1 {[%clk 0:02:15]}  e4 {[%clk 0:02:14]} 24. d4 {[%clk 0:01:50]}  Rc8 {[%clk 0:02:06]} 25. a5 {[%clk 0:01:43]}  Rxc1+ {[%clk 0:02:02]} 26. Bxc1 {[%clk 0:01:44]}  Qc8 {[%clk 0:02:02]} 27. Ba3 {[%clk 0:01:18]}  Qc7 {[%clk 0:01:49]} 28. Qd2 {[%clk 0:01:08]}  Be7 {[%clk 0:01:49]} 29. Bb3 {[%clk 0:01:04]}  Kh7 {[%clk 0:01:43]} 30. Bb4 {[%clk 0:00:58]}  b6 {[%clk 0:01:25]} 31. a6 {[%clk 0:00:57]}  Qd7 {[%clk 0:01:26]} 32. Bc4 {[%clk 0:00:51]}  Qf5 {[%clk 0:01:26]} 33. Qa2 {[%clk 0:00:43]}  Nh5 {[%clk 0:01:25]} 34. g4 {[%clk 0:00:32]}  Qg5 {[%clk 0:01:21]} 35. Bd2 {[%clk 0:00:24]}  Nf4 {[%clk 0:01:22]} 36. Bxf4 {[%clk 0:00:23]}  Qxf4 {[%clk 0:01:23]} 37. Qe2 {[%clk 0:00:20]}  Qc1+ {[%clk 0:01:12]} 38. Kg2 {[%clk 0:00:20]}  Bf6 {[%clk 0:01:13]} 39. h4 {[%clk 0:00:14]}  Bxh4 {[%clk 0:01:09]} 40. Bb3 {[%clk 0:00:10]}  Qf4 {[%clk 0:01:01]} 41. Bc2 {[%clk 0:00:10]}  Qf6 {[%clk 0:00:49]} 42. Bxe4 {[%clk 0:00:08]}  Qxd4 {[%clk 0:00:45]} 43. Qc2 {[%clk 0:00:08]}  Qf6 {[%clk 0:00:43]} 44. f3 {[%clk 0:00:04]}  Bg5 {[%clk 0:00:42]} 45. Qd3 {[%clk 0:00:02]}  Bf4 {[%clk 0:00:42]} 46. Qc2 {[%clk 0:00:02]}  Qg5 {[%clk 0:00:41]} 47. Qd3 {[%clk 0:00:02]}  h5 {[%clk 0:00:41]} 48. Qe2 {[%clk 0:00:01]}  Qh4 {[%clk 0:00:40]} 49. Bd3 {[%clk 0:00:01]}  hxg4 {[%clk 0:00:34]} 50. fxg4 {[%clk 0:00:02]}  Qg3+ {[%clk 0:00:34]} 51. Kf1 {[%clk 0:00:03]}  Kh6 {[%clk 0:00:30]} 52. Qe4 {[%clk 0:00:03]}  Qxg4 {[%clk 0:00:28]} 53. Qh1+ {[%clk 0:00:03]}  Kg5 {[%clk 0:00:26]} 54. Qe4 {[%clk 0:00:03]}  Qh3+ {[%clk 0:00:21]} 55. Ke2 {[%clk 0:00:03]}  Qh5+ {[%clk 0:00:21]} 56. Kf1 {[%clk 0:00:03]}  Qh3+ {[%clk 0:00:17]} 57. Ke2 {[%clk 0:00:03]}  Qg4+ {[%clk 0:00:17]} 58. Kf1 {[%clk 0:00:03]}  Kf6 {[%clk 0:00:12]} 59. Kf2 {[%clk 0:00:02]}  Bg3+ {[%clk 0:00:08]} 60. Ke3 {[%clk 0:00:03]}  Qxe4+ {[%clk 0:00:08]} 61. Bxe4 {[%clk 0:00:04]}  g5 {[%clk 0:00:08]} 62. Bf3 {[%clk 0:00:04]}  Kf5 {[%clk 0:00:07]} 63. Kd4 {[%clk 0:00:04]}  Bf2+ {[%clk 0:00:07]} 64. Kd3 {[%clk 0:00:04]}  g4 {[%clk 0:00:07]} 65. Bg2 {[%clk 0:00:04]}  Kf4 {[%clk 0:00:08]} 66. Ke2 {[%clk 0:00:05]}  Bc5 {[%clk 0:00:08]} 67. Kf1 {[%clk 0:00:06]}  Ke3 {[%clk 0:00:08]} 68. Kg1 {[%clk 0:00:05]}  Kd3+ {[%clk 0:00:05]} 69. Kh2 {[%clk 0:00:05]}  Kc4 {[%clk 0:00:05]} 70. Kg3 {[%clk 0:00:05]}  Kxb5 {[%clk 0:00:05]} 71. Bf1+ {[%clk 0:00:06]}  Ka4 {[%clk 0:00:05]} 72. Kxg4 {[%clk 0:00:06]}  b5 {[%clk 0:00:06]} 73. Kf3 {[%clk 0:00:06]}  b4 {[%clk 0:00:06]} 74. Ke4 {[%clk 0:00:07]}  b3 {[%clk 0:00:07]} 75. Kd3 {[%clk 0:00:08]}  Ka3 {[%clk 0:00:07]} 76. Kc3 {[%clk 0:00:08]}  b2 {[%clk 0:00:07]} 77. Bd3 {[%clk 0:00:09]}  Ka2 {[%clk 0:00:07]} 78. Bc4+ {[%clk 0:00:09]}  Ka1 {[%clk 0:00:07]} 79. Bd3 {[%clk 0:00:09]}  b1=Q {[%clk 0:00:07]} 0-1

[Event "December 5 Late 2023"]
[Site "https://www.chess.com"]
[Date "2023.12.05"]
[Round "2"]
[White "Zhigalko, Sergei"]
[Black "Veljanoski, Andrej"]
[Result "1-0"]
[Board "34"]
[TimeControl "180+1"]
[WhiteFideId "13502956"]
[BlackFideId "15003604"]
[WhiteElo "2911"]
[BlackElo "2569"]
[WhiteTeam "BLR"]
[BlackTeam "MKD"]
[WhiteClock "0:00:04"]
[BlackClock "0:00:03"]

1. e4 {[%clk 0:03:00]}  e5 {[%clk 0:02:56]} 2. Nf3 {[%clk 0:03:00]}  Nc6 {[%clk 0:02:56]} 3. Bc4 {[%clk 0:02:59]}  Bc5 {[%clk 0:02:55]} 4. b4 {[%clk 0:02:59]}  Bxb4 {[%clk 0:02:56]} 5. c3 {[%clk 0:02:59]}  Ba5 {[%clk 0:02:57]} 6. d4 {[%clk 0:02:59]}  Qe7 {[%clk 0:02:52]} 7. O-O {[%clk 0:02:52]}  Bb6 {[%clk 0:02:49]} 8. a4 {[%clk 0:02:05]}  a5 {[%clk 0:02:44]} 9. Qb3 {[%clk 0:01:47]}  d6 {[%clk 0:01:57]} 10. dxe5 {[%clk 0:01:43]}  Nxe5 {[%clk 0:01:35]} 11. Nxe5 {[%clk 0:01:41]}  Qxe5 {[%clk 0:01:34]} 12. Bxf7+ {[%clk 0:01:39]}  Kf8 {[%clk 0:01:35]} 13. Nd2 {[%clk 0:01:28]}  Nh6 {[%clk 0:01:29]} 14. Nc4 {[%clk 0:01:18]}  Be6 {[%clk 0:01:06]} 15. Nxe5 {[%clk 0:00:47]}  Bxb3 {[%clk 0:01:02]} 16. Bxb3 {[%clk 0:00:47]}  dxe5 {[%clk 0:01:02]} 17. Ba3+ {[%clk 0:00:47]}  Ke8 {[%clk 0:00:58]} 18. Rad1 {[%clk 0:00:47]}  Rd8 {[%clk 0:00:51]} 19. Rxd8+ {[%clk 0:00:42]}  Kxd8 {[%clk 0:00:52]} 20. Rd1+ {[%clk 0:00:43]}  Kc8 {[%clk 0:00:53]} 21. Be6+ {[%clk 0:00:36]}  Kb8 {[%clk 0:00:52]} 22. Rd7 {[%clk 0:00:34]}  Re8 {[%clk 0:00:45]} 23. Bh3 {[%clk 0:00:34]}  g5 {[%clk 0:00:15]} 24. Rxh7 {[%clk 0:00:28]}  g4 {[%clk 0:00:15]} 25. Rxh6 {[%clk 0:00:21]}  gxh3 {[%clk 0:00:16]} 26. Rxh3 {[%clk 0:00:05]}  Rd8 {[%clk 0:00:16]} 27. g4 {[%clk 0:00:05]}  Rd1+ {[%clk 0:00:13]} 28. Kg2 {[%clk 0:00:05]}  Ra1 {[%clk 0:00:13]} 29. Be7 {[%clk 0:00:04]}  Rxa4 {[%clk 0:00:13]} 30. g5 {[%clk 0:00:04]}  Rxe4 {[%clk 0:00:14]} 31. g6 {[%clk 0:00:05]}  Rg4+ {[%clk 0:00:11]} 32. Rg3 {[%clk 0:00:05]}  Rxg3+ {[%clk 0:00:03]} 33. fxg3 {[%clk 0:00:04]} 1-0

[Event "December 5 Late 2023"]
[Site "https://www.chess.com"]
[Date "2023.12.05"]
[Round "2"]
[White "Rodgers, Jack"]
[Black "Melkumyan, Hrant"]
[Result "0-1"]
[Board "35"]
[TimeControl "180+1"]
[WhiteFideId "3220885"]
[BlackFideId "13302485"]
[WhiteElo "2565"]
[BlackElo "2907"]
[WhiteTeam "AUS"]
[BlackTeam "ARM"]
[WhiteClock "0:00:48"]
[BlackClock "0:01:47"]

1. d4 {[%clk 0:03:00]}  Nf6 {[%clk 0:02:54]} 2. Bg5 {[%clk 0:03:00]}  d5 {[%clk 0:02:52]} 3. Bxf6 {[%clk 0:03:00]}  gxf6 {[%clk 0:02:50]} 4. e3 {[%clk 0:03:00]}  c5 {[%clk 0:02:41]} 5. dxc5 {[%clk 0:03:01]}  e6 {[%clk 0:02:39]} 6. c4 {[%clk 0:03:01]}  dxc4 {[%clk 0:02:31]} 7. Qxd8+ {[%clk 0:03:02]}  Kxd8 {[%clk 0:02:31]} 8. Nc3 {[%clk 0:03:03]}  Bxc5 {[%clk 0:02:30]} 9. Bxc4 {[%clk 0:03:03]}  Ke7 {[%clk 0:02:29]} 10. Nge2 {[%clk 0:02:55]}  a6 {[%clk 0:02:26]} 11. Rc1 {[%clk 0:02:55]}  Nd7 {[%clk 0:02:24]} 12. O-O {[%clk 0:02:51]}  b5 {[%clk 0:02:23]} 13. Bd3 {[%clk 0:02:51]}  f5 {[%clk 0:02:19]} 14. Rfd1 {[%clk 0:02:37]}  Bb7 {[%clk 0:02:15]} 15. e4 {[%clk 0:02:27]}  Rhg8 {[%clk 0:02:10]} 16. a3 {[%clk 0:01:42]}  Rac8 {[%clk 0:02:04]} 17. Ng3 {[%clk 0:01:31]}  f4 {[%clk 0:01:57]} 18. Nf1 {[%clk 0:01:25]}  Ne5 {[%clk 0:01:55]} 19. Bb1 {[%clk 0:00:56]}  Bb6 {[%clk 0:01:47]} 20. Rd2 {[%clk 0:00:48]}  Nf3+ {[%clk 0:01:47]} 0-1

[Event "December 5 Late 2023"]
[Site "https://www.chess.com"]
[Date "2023.12.05"]
[Round "2"]
[White "Dardha, Daniel"]
[Black "Mendez Fortes, Eduardo Jesus"]
[Result "1-0"]
[Board "36"]
[TimeControl "180+1"]
[WhiteFideId "240990"]
[BlackFideId "3502376"]
[WhiteElo "2893"]
[BlackElo "2563"]
[WhiteTeam "BEL"]
[BlackTeam "CUB"]
[WhiteClock "0:00:45"]
[BlackClock "0:01:41"]

1. Nf3 {[%clk 0:03:00]}  d5 {[%clk 0:02:57]} 2. g3 {[%clk 0:03:00]}  Nf6 {[%clk 0:02:58]} 3. Bg2 {[%clk 0:03:00]}  e6 {[%clk 0:02:58]} 4. Kf1 {[%clk 0:02:59]}  Be7 {[%clk 0:02:55]} 5. d3 {[%clk 0:02:59]}  O-O {[%clk 0:02:56]} 6. Nbd2 {[%clk 0:02:59]}  c5 {[%clk 0:02:56]} 7. h4 {[%clk 0:02:59]}  Nc6 {[%clk 0:02:56]} 8. c3 {[%clk 0:02:58]}  e5 {[%clk 0:02:55]} 9. Qc2 {[%clk 0:02:57]}  Rb8 {[%clk 0:02:52]} 10. e4 {[%clk 0:02:56]}  d4 {[%clk 0:02:52]} 11. Nc4 {[%clk 0:02:56]}  Qc7 {[%clk 0:02:51]} 12. Ncxe5 {[%clk 0:02:52]}  Nxe5 {[%clk 0:02:49]} 13. Nxe5 {[%clk 0:02:53]}  Bd6 {[%clk 0:02:37]} 14. Nc4 {[%clk 0:02:50]}  Ra8 {[%clk 0:02:31]} 15. Nxd6 {[%clk 0:02:45]}  Qxd6 {[%clk 0:02:32]} 16. cxd4 {[%clk 0:02:45]}  cxd4 {[%clk 0:02:29]} 17. Bf4 {[%clk 0:02:46]}  Qe7 {[%clk 0:02:28]} 18. Bf3 {[%clk 0:02:43]}  Bg4 {[%clk 0:02:25]} 19. Kg2 {[%clk 0:02:41]}  Bxf3+ {[%clk 0:02:25]} 20. Kxf3 {[%clk 0:02:42]}  Qd7 {[%clk 0:02:24]} 21. Kg2 {[%clk 0:02:40]}  Rac8 {[%clk 0:02:22]} 22. Qe2 {[%clk 0:02:37]}  g6 {[%clk 0:02:22]} 23. Rhc1 {[%clk 0:02:34]}  Nh5 {[%clk 0:02:21]} 24. Bh6 {[%clk 0:02:33]}  Rfe8 {[%clk 0:02:20]} 25. Rxc8 {[%clk 0:02:33]}  Rxc8 {[%clk 0:02:20]} 26. Rc1 {[%clk 0:02:33]}  Rxc1 {[%clk 0:02:19]} 27. Bxc1 {[%clk 0:02:34]}  f5 {[%clk 0:02:18]} 28. exf5 {[%clk 0:02:33]}  Qc6+ {[%clk 0:02:18]} 29. Qe4 {[%clk 0:02:28]}  Qxc1 {[%clk 0:02:18]} 30. fxg6 {[%clk 0:02:07]}  Qc6 {[%clk 0:02:05]} 31. gxh7+ {[%clk 0:02:06]}  Kg7 {[%clk 0:02:05]} 32. Kf3 {[%clk 0:01:59]}  Nf6 {[%clk 0:02:05]} 33. Qxc6 {[%clk 0:01:57]}  bxc6 {[%clk 0:02:06]} 34. Kf4 {[%clk 0:01:53]}  c5 {[%clk 0:02:05]} 35. f3 {[%clk 0:01:32]}  Nh5+ {[%clk 0:01:54]} 36. Ke5 {[%clk 0:01:10]}  Nxg3 {[%clk 0:01:54]} 37. Kd5 {[%clk 0:01:09]}  Nf5 {[%clk 0:01:49]} 38. h5 {[%clk 0:00:49]}  Kxh7 {[%clk 0:01:47]} 39. Kxc5 {[%clk 0:00:49]}  Kh6 {[%clk 0:01:48]} 40. b4 {[%clk 0:00:49]}  Kxh5 {[%clk 0:01:48]} 41. a4 {[%clk 0:00:50]}  Kg5 {[%clk 0:01:48]} 42. b5 {[%clk 0:00:47]}  Kf4 {[%clk 0:01:49]} 43. a5 {[%clk 0:00:45]}  Ne7 {[%clk 0:01:47]} 44. b6 {[%clk 0:00:44]}  axb6+ {[%clk 0:01:41]} 45. axb6 {[%clk 0:00:45]} 1-0